Workbook

Sheet En kunde
A1: Forbruk | D1: Regning
A2: 141.94 | C2: Energitariff | D2: 201206.3438
A3: 130.152 | C3: Abonnert | D3: 182702.7384
A4: 141.279 | C4: Døgn sesong | D4: 160927.9797
A5: 128.448 | C5: sikring | D5: 120456.1836
A6: 124.925 | C6: Døgnmaks | D6: 161218.3462
A7: 130.33
A8: 135.218
A9: 141.617
A10: 132.844
A11: 148.271
A12: 156.445
A13: 156.43
A14: 164.7
A15: 162.584
A16: 167.754
A17: 187.619
A18: 188.413
A19: 189.5
A20: 189.5
A21: 187.069
A22: 189.5
A23: 189.5
A24: 177.6
A25: 140.833
A26: 138.192
A27: 136.226
A28: 133.338
A29: 144.045
A30: 146.674
A31: 150.228
A32: 166.027
A33: 189.11
A34: 184.465
A35: 187.553
A36: 189.5
A37: 183.345
A38: 177.335
A39: 161.255
A40: 167.382
A41: 177.05
A42: 189.5
A43: 189.5
A44: 189.5
A45: 189.5
A46: 189.5
A47: 189.5
A48: 189.5
A49: 169.351
A50: 146.755
A51: 151.534
A52: 153.412
A53: 145.166
A54: 144.324
A55: 151.084
A56: 179.74
A57: 189.5
A58: 183.795
A59: 175.206
A60: 162.62
A61: 164.736
A62: 162.87
A63: 165.37
A64: 161.161
A65: 181.714
A66: 189.5
A67: 189.5
A68: 189.5
A69: 189.5
A70: 189.5
A71: 189.5
A72: 189.5
A73: 182.16
A74: 175.588
A75: 169.861
A76: 144.726
A77: 144.098
A78: 146.439
A79: 150.001
A80: 162.03
A81: 189.5
A82: 186.187
A83: 157.26
A84: 159.561
A85: 169.389
A86: 151.171
A87: 150.619
A88: 149.533
A89: 165.157
A90: 183.483
A91: 186.978
A92: 173.071
A93: 189.5
A94: 189.5
A95: 180.53
A96: 162.098
A97: 140.898
A98: 124.387
A99: 110.727
A100: 111.03
A101: 114.938
A102: 115.339
A103: 115.04
A104: 118.376
A105: 125.887
A106: 136.84
A107: 151.114
A108: 160.827
A109: 160.58
A110: 167.819
A111: 149.267
A112: 151.725
A113: 160.323
A114: 146.061
A115: 157.694
A116: 178.028
A117: 175.861
A118: 160.188
A119: 144.236
A120: 135.979
A121: 127.139
A122: 119.996
A123: 112.83
A124: 106.441
A125: 110.956
A126: 111.202
A127: 122.09
A128: 120.343
A129: 126.516
A130: 125.81
A131: 142.379
A132: 167.501
A133: 188.323
A134: 181.014
A135: 164.182
A136: 161.262
A137: 171.975
A138: 181.181
A139: 160.189
A140: 183.702
A141: 189.5
A142: 189.5
A143: 189.5
A144: 189.5
A145: 156.989
A146: 148.343
A147: 143.252
A148: 133.386
A149: 138.625
A150: 132.7
A151: 148.565
A152: 170.865
A153: 188.13
A154: 181.34
A155: 173.693
A156: 167.238
A157: 153.218
A158: 157.538
A159: 156.212
A160: 156.854
A161: 173.515
A162: 183.919
A163: 189.5
A164: 189.5
A165: 189.5
A166: 189.5
A167: 189.5
A168: 189.5
A169: 172.744
A170: 161.412
A171: 129.776
A172: 122.913
A173: 132.697
A174: 125.283
A175: 129.273
A176: 159.502
A177: 180.941
A178: 159.953
A179: 150.442
A180: 147.119
A181: 150.074
A182: 146.897
A183: 146.609
A184: 146.488
A185: 161.936
A186: 174.75
A187: 189.5
A188: 188.461
A189: 189.5
A190: 189.5
A191: 189.5
A192: 187.382
A193: 159.313
A194: 141.293
A195: 145.083
A196: 145.196
A197: 151.084
A198: 152.893
A199: 155.172
A200: 180.717
... 8561 more rows

Sheet Priser
A2: Nettleie priser
B3: Energipris | C3: Effektpris | D3: Avtalt pris | E3: Fastledd | F3: Avtalt effektuttak
A4: Energitariff | B4: 0.1859 | C4: 0 | D4: 0 | E4: 2046 | F4: 0
A5: Abonnert | B5: 0.05 | C5: 1 | D5: 674.8277416 | E5: 1350 | F5: 4
A6: Døgnmaks | B6: 0.05 | C6: 1.874477406 | D6: 0 | E6: 1850 | F6: 0
A7: sikring | B7: 0.05 | C7: 0 | D7: 342.8402867 | E7: 1750 | F7: =ROUNDUP(MAXA('En kunde'!A1:A8736),0) -> 190
A8: Døgn sesong | B8: fra døgnmaks | C8: 1.486933366 | D8: 2.252929342 | E8: fra døgnmaks | F8: 11 | G8: 3 | H8: 0.66
C9: Sommerpris | D9: Vinterpris | F9: Vinter start (fom.) | G9: Vinter slutt (tom.) | H9: Prisforskjell (=sommerpris/vinterpris)
A12: Spotpriser (gjennomsnitt)
A13: 2019 | B13: 0.4267
A14: 2022 | B14: 0.4444
A15: 2025 | B15: 0.474
A16: 2030 | B16: 0.443
A17: 2040 | B17: 0.5124

Sheet Sammenlikning
C4: Nettleie priser med og uten batteri
C5: Enebolig | E5: Næringsbygg | G5: Nabolag
B6: Batteri | C6: Uten | D6: Med | E6: Uten | F6: Med | G6: Uten | H6: Med
B7: Energitariff | C7: 6473.703125 | D7: 6453.599609 | E7: 157502.3281 | F7: 156505.75 | G7: 203099.0625 | H7: 201206.3438
B8: Abonnert | C8: 5680.575091 | D8: 5566.971969 | E8: 164426.091 | F8: 158797.5738 | G8: 193393.2687 | H8: 182702.7384
B9: Døgn sesong | C9: 5651.59258 | D9: 5542.071653 | E9: 143626.0674 | F9: 139788.1312 | G9: 167647.5508 | H9: 160927.9797
B10: sikring | C10: 5340.765137 | D10: 4649.67749 | E10: 116929.6406 | F10: 102262.3086 | G10: 148049.6328 | H10: 120456.1836
B11: Døgnmaks | C11: 5639.329532 | D11: 5546.944794 | E11: 147004.049 | F11: 143341.8807 | G11: 166925.3759 | H11: 161218.3462
B13: Størst differanse | C13: =C7-D7 -> 20.10351562 | E13: =E7-F7 -> 996.578125 | G13: =G7-H7 -> 1892.71875 | I13: kr/år
C14: =C8-D8 -> 113.6031222 | E14: =E8-F8 -> 5628.517227 | G14: =G8-H8 -> 10690.53033
C15: 109.5209269 | E15: 3837.936229 | G15: 6719.571124
C16: 691.0876465 | E16: 14667.33203 | G16: 27593.44922 | I16: Bruker høyeste verdi videre i beregningene
C17: 92.38473779 | E17: 3662.168287 | G17: 5707.029639
C20: Sportpriser med og uten batteri
C21: Enebolig | E21: Næringsbygg | G21: Nabolag
B22: Batteri | C22: Uten | D22: Med | E22: Uten | F22: Med | G22: Uten | H22: Med
B23: Forbruk | C23: 23817.673 | D23: 23709.477 | E23: 836235.043 | F23: 830874.561 | G23: 1081511.56 | H23: 1071330.096
B24: 2019 | C24: =Priser!B13*Sammenlikning!$C$23 -> 10163.00107 | D24: =Priser!B13*Sammenlikning!$D$23 -> 10116.83384 | E24: =Priser!B13*Sammenlikning!$E$23 -> 356821.4928 | F24: =Priser!B13*Sammenlikning!$F$23 -> 354534.1752 | G24: =Priser!B13*Sammenlikning!$G$23 -> 461480.9827 | H24: =Priser!B13*Sammenlikning!$H$23 -> 457136.552
B25: 2022 | C25: =Priser!B14*Sammenlikning!$C$23 -> 10584.57388 | D25: =Priser!B14*Sammenlikning!$D$23 -> 10536.49158 | E25: =Priser!B14*Sammenlikning!$E$23 -> 371622.8531 | F25: =Priser!B14*Sammenlikning!$F$23 -> 369240.6549 | G25: =Priser!B14*Sammenlikning!$G$23 -> 480623.7373 | H25: =Priser!B14*Sammenlikning!$H$23 -> 476099.0947
B26: 2025 | C26: =Priser!B15*Sammenlikning!$C$23 -> 11289.577 | D26: =Priser!B15*Sammenlikning!$D$23 -> 11238.2921 | E26: =Priser!B15*Sammenlikning!$E$23 -> 396375.4104 | F26: =Priser!B15*Sammenlikning!$F$23 -> 393834.5419 | G26: =Priser!B15*Sammenlikning!$G$23 -> 512636.4794 | H26: =Priser!B15*Sammenlikning!$H$23 -> 507810.4655
B27: 2030 | C27: =Priser!B16*Sammenlikning!$C$23 -> 10551.22914 | D27: =Priser!B16*Sammenlikning!$D$23 -> 10503.29831 | E27: =Priser!B16*Sammenlikning!$E$23 -> 370452.124 | F27: =Priser!B16*Sammenlikning!$F$23 -> 368077.4305 | G27: =Priser!B16*Sammenlikning!$G$23 -> 479109.6211 | H27: =Priser!B16*Sammenlikning!$H$23 -> 474599.2325
B28: 2040 | C28: =Priser!B17*Sammenlikning!$C$23 -> 12204.17565 | D28: =Priser!B17*Sammenlikning!$D$23 -> 12148.73601 | E28: =Priser!B17*Sammenlikning!$E$23 -> 428486.836 | F28: =Priser!B17*Sammenlikning!$F$23 -> 425740.1251 | G28: =Priser!B17*Sammenlikning!$G$23 -> 554166.5233 | H28: =Priser!B17*Sammenlikning!$H$23 -> 548949.5412
B29: Differanse
B30: 2019 | C30: =C24-D24 -> 46.1672332 | E30: =E24-F24 -> 2287.317669 | G30: =G24-H24 -> 4344.430689 | I30: kr/år
B31: 2022 | C31: =C25-D25 -> 48.0823024 | E31: =E25-F25 -> 2382.198201 | G31: =G25-H25 -> 4524.642602 | I31: kr/år
B32: 2025 | C32: =C26-D26 -> 51.284904 | E32: 2540.868468 | G32: 4826.013936 | I32: kr/år
B33: 2030 | C33: 47.930828 | E33: 2374.693526 | G33: 4510.388552 | I33: kr/år
B34: 2040 | C34: 55.4396304 | E34: 2746.710977 | G34: 5216.982154 | I34: kr/år
C37: Total besparelse
C38: Enebolig | D38: Næringsbygg | E38: Nabolag
B40: 2019 | C40: =C30+$C$13 -> 66.27074882 | D40: =E30+$E$13 -> 3283.895794 | E40: =G30+$G$13 -> 6237.149439 | G40: kr/år
B41: 2022 | C41: =C31+$C$13 -> 68.18581803 | D41: =E31+$E$13 -> 3378.776326 | E41: =G31+$G$13 -> 6417.361352 | G41: kr/år
B42: 2025 | C42: =C32+$C$13 -> 71.38841963 | D42: =E32+$E$13 -> 3537.446593 | E42: =G32+$G$13 -> 6718.732686 | G42: kr/år
B43: 2030 | C43: =C33+$C$13 -> 68.03434362 | D43: =E33+$E$13 -> 3371.271651 | E43: =G33+$G$13 -> 6403.107302 | G43: kr/år
B44: 2040 | C44: =C34+$C$13 -> 75.54314603 | D44: =E34+$E$13 -> 3743.289102 | E44: =G34+$G$13 -> 7109.700904 | G44: kr/år
J45: Forutsetninger
C46: NPV | J46: Investering | K46: r | L46: n | M46: Enova
C47: Enebolig | E47: Næringsbygg | G47: Nabolag | J47: 45000 | K47: 0.05 | L47: 10 | M47: 0.5
B48: Enova | C48: Uten | D48: Med | E48: Uten | F48: Med | G48: Uten | H48: Med | J48: 700000 | L48: 15
A49: 2019 | B49: n=10 | C49: =$C$40*((1-(1+$K$47)^(-L47))/$K$47)-$J$47 -> -44488.27484 | D49: =($C$40*((1-(1+$K$47)^(-L47))/$K$47)-$J$47*$M$47) -> -21988.27484 | E49: =$D$40*((1-(1+$K$47)^(-L47))/$K$47)-$J$48 -> -674642.6271 | F49: =($D$40*((1-(1+$K$47)^(-L47))/$K$47)-$J$48*$M$47) -> -324642.6271 | G49: =$E$40*((1-(1+$K$47)^(-L47))/$K$47)-$J$49 -> -951838.3853 | H49: =($E$40*((1-(1+$K$47)^(-L47))/$K$47)-$J$49*$M$47) -> -451838.3853 | J49: 1000000 | L49: 20
B50: n=15 | C50: =$C$40*((1-(1+$K$47)^(-L48))/$K$47)-$J$47 -> -44312.13229 | D50: =($C$40*((1-(1+$K$47)^(-L48))/$K$47)-$J$47*$M$47) -> -21812.13229 | E50: =$D$40*((1-(1+$K$47)^(-L48))/$K$47)-$J$48 -> -665914.2846 | F50: =($D$40*((1-(1+$K$47)^(-L48))/$K$47)-$J$48*$M$47) -> -315914.2846 | G50: =$E$40*((1-(1+$K$47)^(-L48))/$K$47)-$J$49 -> -935260.5217 | H50: =($E$40*((1-(1+$K$47)^(-L48))/$K$47)-$J$49*$M$47) -> -435260.5217
B51: n=20 | C51: =$C$40*((1-(1+$K$47)^(-L49))/$K$47)-$J$47 -> -44174.11999 | D51: =($C$40*((1-(1+$K$47)^(-L49))/$K$47)-$J$47*$M$47) -> -21674.11999 | E51: =$D$40*((1-(1+$K$47)^(-L49))/$K$47)-$J$48 -> -659075.3999 | F51: =($D$40*((1-(1+$K$47)^(-L49))/$K$47)-$J$48*$M$47) -> -309075.3999 | G51: =$E$40*((1-(1+$K$47)^(-L49))/$K$47)-$J$49 -> -922271.3318 | H51: =($E$40*((1-(1+$K$47)^(-L49))/$K$47)-$J$49*$M$47) -> -422271.3318
A52: 2022 | B52: n=10 | C52: =$C$41*((1-(1+$K$47)^(-L47))/$K$47)-$J$47 -> -44473.48719 | D52: =($C$41*((1-(1+$K$47)^(-L47))/$K$47)-$J$47*$M$47) -> -21973.48719 | E52: =$D$41*((1-(1+$K$47)^(-L47))/$K$47)-$J$48 -> -673909.9848 | F52: =($D$41*((1-(1+$K$47)^(-L47))/$K$47)-$J$48*$M$47) -> -323909.9848 | G52: =$E$41*((1-(1+$K$47)^(-L47))/$K$47)-$J$49 -> -950446.8367 | H52: =($E$41*((1-(1+$K$47)^(-L47))/$K$47)-$J$49*$M$47) -> -450446.8367
B53: n=15 | C53: =$C$41*((1-(1+$K$47)^(-L48))/$K$47)-$J$47 -> -44292.25453 | D53: =($C$41*((1-(1+$K$47)^(-L48))/$K$47)-$J$47*$M$47) -> -21792.25453 | E53: =$D$41*((1-(1+$K$47)^(-L48))/$K$47)-$J$48 -> -664929.4572 | F53: =($D$41*((1-(1+$K$47)^(-L48))/$K$47)-$J$48*$M$47) -> -314929.4572 | G53: =$E$41*((1-(1+$K$47)^(-L48))/$K$47)-$J$49 -> -933389.9837 | H53: =($E$41*((1-(1+$K$47)^(-L48))/$K$47)-$J$49*$M$47) -> -433389.9837
B54: n=20 | C54: =$C$41*((1-(1+$K$47)^(-L49))/$K$47)-$J$47 -> -44150.25399 | D54: =($C$41*((1-(1+$K$47)^(-L49))/$K$47)-$J$47*$M$47) -> -21650.25399 | E54: =$D$41*((1-(1+$K$47)^(-L49))/$K$47)-$J$48 -> -657892.9787 | F54: =($D$41*((1-(1+$K$47)^(-L49))/$K$47)-$J$48*$M$47) -> -307892.9787 | G54: =$E$41*((1-(1+$K$47)^(-L49))/$K$47)-$J$49 -> -920025.493 | H54: =($E$41*((1-(1+$K$47)^(-L49))/$K$47)-$J$49*$M$47) -> -420025.493
A55: 2025 | B55: n=10 | C55: =$C$42*((1-(1+$K$47)^(-L47))/$K$47)-$J$47 -> -44448.75755 | D55: =($C$42*((1-(1+$K$47)^(-L47))/$K$47)-$J$47*$M$47) -> -21948.75755 | E55: =$D$42*((1-(1+$K$47)^(-L47))/$K$47)-$J$48 -> -672684.7751 | F55: =($D$42*((1-(1+$K$47)^(-L47))/$K$47)-$J$48*$M$47) -> -322684.7751 | G55: =$E$42*((1-(1+$K$47)^(-L47))/$K$47)-$J$49 -> -948119.7271 | H55: =($E$42*((1-(1+$K$47)^(-L47))/$K$47)-$J$49*$M$47) -> -448119.7271
B56: n=15 | C56: =$C$42*((1-(1+$K$47)^(-L48))/$K$47)-$J$47 -> -44259.01262 | D56: =($C$42*((1-(1+$K$47)^(-L48))/$K$47)-$J$47*$M$47) -> -21759.01262 | E56: =$D$42*((1-(1+$K$47)^(-L48))/$K$47)-$J$48 -> -663282.514 | F56: =($D$42*((1-(1+$K$47)^(-L48))/$K$47)-$J$48*$M$47) -> -313282.514 | G56: =$E$42*((1-(1+$K$47)^(-L48))/$K$47)-$J$49 -> -930261.8523 | H56: =($E$42*((1-(1+$K$47)^(-L48))/$K$47)-$J$49*$M$47) -> -430261.8523
B57: n=20 | C57: =$C$42*((1-(1+$K$47)^(-L49))/$K$47)-$J$47 -> -44110.3425 | D57: =($C$42*((1-(1+$K$47)^(-L49))/$K$47)-$J$47*$M$47) -> -21610.3425 | E57: =$D$42*((1-(1+$K$47)^(-L49))/$K$47)-$J$48 -> -655915.5965 | F57: =($D$42*((1-(1+$K$47)^(-L49))/$K$47)-$J$48*$M$47) -> -305915.5965 | G57: =$E$42*((1-(1+$K$47)^(-L49))/$K$47)-$J$49 -> -916269.74 | H57: =($E$42*((1-(1+$K$47)^(-L49))/$K$47)-$J$49*$M$47) -> -416269.74
A58: 2030 | B58: n=10 | C58: =$C$43*((1-(1+$K$47)^(-L47))/$K$47)-$J$47 -> -44474.65683 | D58: =($C$43*((1-(1+$K$47)^(-L47))/$K$47)-$J$47*$M$47) -> -21974.65683 | E58: =$D$43*((1-(1+$K$47)^(-L47))/$K$47)-$J$48 -> -673967.9339 | F58: =($D$43*((1-(1+$K$47)^(-L47))/$K$47)-$J$48*$M$47) -> -323967.9339 | G58: =$E$43*((1-(1+$K$47)^(-L47))/$K$47)-$J$49 -> -950556.9027 | H58: =($E$43*((1-(1+$K$47)^(-L47))/$K$47)-$J$49*$M$47) -> -450556.9027
B59: n=15 | C59: =$C$43*((1-(1+$K$47)^(-L48))/$K$47)-$J$47 -> -44293.82678 | D59: =($C$43*((1-(1+$K$47)^(-L48))/$K$47)-$J$47*$M$47) -> -21793.82678 | E59: =$D$43*((1-(1+$K$47)^(-L48))/$K$47)-$J$48 -> -665007.3531 | F59: =($D$43*((1-(1+$K$47)^(-L48))/$K$47)-$J$48*$M$47) -> -315007.3531 | G59: =$E$43*((1-(1+$K$47)^(-L48))/$K$47)-$J$49 -> -933537.9358 | H59: =($E$43*((1-(1+$K$47)^(-L48))/$K$47)-$J$49*$M$47) -> -433537.9358
B60: n=20 | C60: =$C$43*((1-(1+$K$47)^(-L49))/$K$47)-$J$47 -> -44152.1417 | D60: =($C$43*((1-(1+$K$47)^(-L49))/$K$47)-$J$47*$M$47) -> -21652.1417 | E60: =$D$43*((1-(1+$K$47)^(-L49))/$K$47)-$J$48 -> -657986.5036 | F60: =($D$43*((1-(1+$K$47)^(-L49))/$K$47)-$J$48*$M$47) -> -307986.5036 | G60: =$E$43*((1-(1+$K$47)^(-L49))/$K$47)-$J$49 -> -920203.13 | H60: =($E$43*((1-(1+$K$47)^(-L49))/$K$47)-$J$49*$M$47) -> -420203.13
A61: 2040 | B61: n=10 | C61: =$C$44*((1-(1+$K$47)^(-L47))/$K$47)-$J$47 -> -44416.67585 | D61: =($C$44*((1-(1+$K$47)^(-L47))/$K$47)-$J$47*$M$47) -> -21916.67585 | E61: =$D$44*((1-(1+$K$47)^(-L47))/$K$47)-$J$48 -> -671095.3138 | F61: =($D$44*((1-(1+$K$47)^(-L47))/$K$47)-$J$48*$M$47) -> -321095.3138 | G61: =$E$44*((1-(1+$K$47)^(-L47))/$K$47)-$J$49 -> -945100.7742 | H61: =($E$44*((1-(1+$K$47)^(-L47))/$K$47)-$J$49*$M$47) -> -445100.7742
B62: n=15 | C62: =$C$44*((1-(1+$K$47)^(-L48))/$K$47)-$J$47 -> -44215.88798 | D62: =($C$44*((1-(1+$K$47)^(-L48))/$K$47)-$J$47*$M$47) -> -21715.88798 | E62: =$D$44*((1-(1+$K$47)^(-L48))/$K$47)-$J$48 -> -661145.9392 | F62: =($D$44*((1-(1+$K$47)^(-L48))/$K$47)-$J$48*$M$47) -> -311145.9392 | G62: =$E$44*((1-(1+$K$47)^(-L48))/$K$47)-$J$49 -> -926203.7359 | H62: =($E$44*((1-(1+$K$47)^(-L48))/$K$47)-$J$49*$M$47) -> -426203.7359
B63: n=20 | C63: =$C$44*((1-(1+$K$47)^(-L49))/$K$47)-$J$47 -> -44058.56542 | D63: =($C$44*((1-(1+$K$47)^(-L49))/$K$47)-$J$47*$M$47) -> -21558.56542 | E63: =$D$44*((1-(1+$K$47)^(-L49))/$K$47)-$J$48 -> -653350.3438 | F63: =($D$44*((1-(1+$K$47)^(-L49))/$K$47)-$J$48*$M$47) -> -303350.3438 | G63: =$E$44*((1-(1+$K$47)^(-L49))/$K$47)-$J$49 -> -911397.4119 | H63: =($E$44*((1-(1+$K$47)^(-L49))/$K$47)-$J$49*$M$47) -> -411397.4119
